[Event "*** Titled Tuesday 3|2 Blitz"]
[Site "Chess.com"]
[Date "2015.05.05"]
[Round "9"]
[White "dabee"]
[Black "Azzaro25"]
[Result "1-0"]
[WhiteElo "2375"]
[BlackElo "2334"]
[TimeControl "180+2"]
[EndTime "13:08:26 PDT"]
[Termination "dabee won by checkmate"]

1. d4 {[%clk 0:03:01.9]} 1... d5 {[%clk 0:03:01]} 2. c4 {[%clk 0:03:02.3]} 2...
e6 {[%clk 0:03:02.6]} 3. Nc3 {[%clk 0:03:03.3]} 3... Bb4 {[%clk 0:03:03.9]} 4.
e3 {[%clk 0:03:03.3]} 4... Nf6 {[%clk 0:03:05.1]} 5. Ne2 {[%clk 0:03:04.4]} 5...
O-O {[%clk 0:03:05.7]} 6. a3 {[%clk 0:03:05.5]} 6... Be7 {[%clk 0:03:07.4]} 7.
Nf4 {[%clk 0:03:05.2]} 7... c6 {[%clk 0:03:04.4]} 8. Bd3 {[%clk 0:03:04.3]} 8...
Nbd7 {[%clk 0:03:03.8]} 9. cxd5 {[%clk 0:03:01.1]} 9... exd5 {[%clk 0:03:04.7]}
10. O-O {[%clk 0:03:02.1]} 10... Re8 {[%clk 0:03:06.3]} 11. Bd2 {[%clk
0:02:58.1]} 11... Nf8 {[%clk 0:03:07.4]} 12. Qc2 {[%clk 0:02:52.4]} 12... Ne6
{[%clk 0:03:03.4]} 13. Nxe6 {[%clk 0:02:51.7]} 13... Bxe6 {[%clk 0:03:05]} 14.
b4 {[%clk 0:02:41.2]} 14... Rc8 {[%clk 0:03:06.1]} 15. Na4 {[%clk 0:02:39]}
15... b6 {[%clk 0:03:06.3]} 16. Rac1 {[%clk 0:02:33.9]} 16... Bd6 {[%clk
0:03:06.9]} 17. Rfe1 {[%clk 0:02:00.8]} 17... h5 {[%clk 0:02:55.9]} 18. h3
{[%clk 0:01:58.6]} 18... Qd7 {[%clk 0:02:56.7]} 19. Bf1 {[%clk 0:01:55.1]} 19...
Bf5 {[%clk 0:02:58]} 20. Qd1 {[%clk 0:01:49.8]} 20... Ne4 {[%clk 0:02:59.4]} 21.
Nc3 {[%clk 0:01:47.8]} 21... Nf6 {[%clk 0:02:54.8]} 22. Qf3 {[%clk 0:01:37.8]}
22... b5 {[%clk 0:02:52.8]} 23. Qd1 {[%clk 0:01:31.9]} 23... a6 {[%clk
0:02:53.4]} 24. Ne2 {[%clk 0:01:26.9]} 24... Re7 {[%clk 0:02:50.7]} 25. Nf4
{[%clk 0:01:21.3]} 25... h4 {[%clk 0:02:49.3]} 26. Nd3 {[%clk 0:01:20.1]} 26...
Ne4 {[%clk 0:02:48.7]} 27. Nc5 {[%clk 0:01:16]} 27... Bxc5 {[%clk 0:02:50.1]}
28. dxc5 {[%clk 0:01:15.7]} 28... Re6 {[%clk 0:02:51.1]} 29. f3 {[%clk
0:00:50.3]} 29... Ng3 {[%clk 0:02:51]} 30. Bc3 {[%clk 0:00:46.7]} 30... Rg6
{[%clk 0:02:35.5]} 31. Kf2 {[%clk 0:00:31.1]} 31... Re8 {[%clk 0:02:31.9]} 32.
Qd4 {[%clk 0:00:31.5]} 32... Qe7 {[%clk 0:02:18.8]} 33. Qf4 {[%clk 0:00:24.5]}
33... Bc8 {[%clk 0:02:10.1]} 34. Bd3 {[%clk 0:00:21.5]} 34... Nh5 {[%clk
0:02:10.4]} 35. Qd4 {[%clk 0:00:17.9]} 35... Rg3 {[%clk 0:02:11]} 36. Bf1 {[%clk
0:00:15.1]} 36... Qg5 {[%clk 0:02:10.3]} 37. Bd2 {[%clk 0:00:11.7]} 37... Nf6
{[%clk 0:01:59]} 38. e4 {[%clk 0:00:10.9]} 38... Qg6 {[%clk 0:01:55.7]} 39. e5
{[%clk 0:00:11.9]} 39... Nh5 {[%clk 0:01:41.7]} 40. Qxh4 {[%clk 0:00:12.1]}
40... Bf5 {[%clk 0:01:43]} 41. Bf4 {[%clk 0:00:10.3]} 41... Nxf4 {[%clk
0:01:43.2]} 42. Qxf4 {[%clk 0:00:11.3]} 42... Rg5 {[%clk 0:01:45]} 43. h4 {[%clk
0:00:10.6]} 43... Rh5 {[%clk 0:01:45.9]} 44. g4 {[%clk 0:00:11.5]} 44... Rxh4
{[%clk 0:01:47.4]} 45. gxf5 {[%clk 0:00:11.8]} 45... Qh5 {[%clk 0:01:46.3]} 46.
Qg3 {[%clk 0:00:11.5]} 46... Rd4 {[%clk 0:01:46.5]} 47. Bg2 {[%clk 0:00:10.2]}
47... Qxf5 {[%clk 0:01:46.9]} 48. Re2 {[%clk 0:00:10]} 48... Rc4 {[%clk
0:01:46.4]} 49. Rce1 {[%clk 0:00:11.3]} 49... d4 {[%clk 0:01:47.7]} 50. e6
{[%clk 0:00:12.3]} 50... fxe6 {[%clk 0:01:48.6]} 51. Re5 {[%clk 0:00:12.2]}
51... Qf6 {[%clk 0:01:47.1]} 52. Bh3 {[%clk 0:00:11]} 52... Rc2+ {[%clk
0:01:47.7]} 53. Kg1 {[%clk 0:00:12.2]} 53... d3 {[%clk 0:01:49.2]} 54. Bxe6+
{[%clk 0:00:13.1]} 54... Rxe6 {[%clk 0:01:35.7]} 55. Rxe6 {[%clk 0:00:14.3]}
55... Qd4+ {[%clk 0:01:37.3]} 56. Kh1 {[%clk 0:00:15.3]} 56... d2 {[%clk
0:01:37.8]} 57. Re8+ {[%clk 0:00:16.3]} 57... Kh7 {[%clk 0:01:36]} 58. Qh3+
{[%clk 0:00:17.2]} 58... Kg6 {[%clk 0:01:37.6]} 59. R1e6+ {[%clk 0:00:18.3]}
59... Kg5 {[%clk 0:01:37.9]} 60. Qg3+ {[%clk 0:00:19.5]} 60... Kf5 {[%clk
0:01:38.5]} 61. Re5+ {[%clk 0:00:20.2]} 61... Kf6 {[%clk 0:01:40.1]} 62. Qg5+
{[%clk 0:00:21.3]} 62... Kf7 {[%clk 0:01:41.3]} 63. R5e7# {[%clk 0:00:22.5]} 1-0

[Event "*** Titled Tuesday 3|2 Blitz"]
[Site "Chess.com"]
[Date "2015.05.05"]
[Round "9"]
[White "VSERGUEI"]
[Black "Malev212"]
[Result "0-1"]
[WhiteElo "2455"]
[BlackElo "2224"]
[TimeControl "180+2"]
[EndTime "13:08:46 PDT"]
[Termination "Malev212 won on time"]

1. d4 {[%clk 0:03:01.9]} 1... d5 {[%clk 0:02:58.1]} 2. c4 {[%clk 0:03:02.7]}
2... dxc4 {[%clk 0:02:57.8]} 3. e4 {[%clk 0:03:02.5]} 3... b5 {[%clk 0:02:58.3]}
4. a4 {[%clk 0:03:02.6]} 4... c6 {[%clk 0:02:58.3]} 5. axb5 {[%clk 0:03:02.8]}
5... cxb5 {[%clk 0:02:59]} 6. b3 {[%clk 0:03:04]} 6... e5 {[%clk 0:02:58]} 7.
Nf3 {[%clk 0:03:01.3]} 7... Nf6 {[%clk 0:02:58.4]} 8. bxc4 {[%clk 0:03:00.4]}
8... Nxe4 {[%clk 0:02:52.5]} 9. Bd3 {[%clk 0:02:59.6]} 9... Bb4+ {[%clk
0:02:49.5]} 10. Kf1 {[%clk 0:02:59.1]} 10... f5 {[%clk 0:02:30.9]} 11. Bxe4
{[%clk 0:02:52.8]} 11... fxe4 {[%clk 0:02:30.5]} 12. Nxe5 {[%clk 0:02:53.4]}
12... O-O {[%clk 0:02:29.2]} 13. Be3 {[%clk 0:02:24.8]} 13... bxc4 {[%clk
0:02:24.8]} 14. Qc2 {[%clk 0:02:07.5]} 14... Qd5 {[%clk 0:02:15.4]} 15. Nc3
{[%clk 0:01:45.5]} 15... Bxc3 {[%clk 0:02:08.1]} 16. Qxc3 {[%clk 0:01:47.4]}
16... a5 {[%clk 0:01:56.2]} 17. h4 {[%clk 0:01:46.6]} 17... Nc6 {[%clk
0:01:51.4]} 18. Nxc6 {[%clk 0:01:38.6]} 18... Qxc6 {[%clk 0:01:51.2]} 19. Rxa5
{[%clk 0:01:35.6]} 19... Rxa5 {[%clk 0:01:48.2]} 20. Qxa5 {[%clk 0:01:35.6]}
20... c3 {[%clk 0:01:48.6]} 21. Qc5 {[%clk 0:01:28.7]} 21... Ba6+ {[%clk
0:01:38.4]} 22. Kg1 {[%clk 0:01:28.2]} 22... Qxc5 {[%clk 0:01:28.8]} 23. dxc5
{[%clk 0:01:28]} 23... Bd3 {[%clk 0:01:26.7]} 24. Kh2 {[%clk 0:01:26.9]} 24...
Ra8 {[%clk 0:01:22.8]} 25. Kg3 {[%clk 0:01:13.4]} 25... Kf7 {[%clk 0:01:23.4]}
26. Kf4 {[%clk 0:01:13.7]} 26... Ke6 {[%clk 0:01:24.1]} 27. Bd4 {[%clk
0:01:14.1]} 27... c2 {[%clk 0:01:21.6]} 28. Bxg7 {[%clk 0:01:14.8]} 28... Kd5
{[%clk 0:01:19.6]} 29. Bh6 {[%clk 0:01:06.7]} 29... Ra6 {[%clk 0:01:15.7]} 30.
Bg5 {[%clk 0:01:03.7]} 30... Kxc5 {[%clk 0:01:13.1]} 31. Ke5 {[%clk 0:01:02.4]}
31... Kc4 {[%clk 0:01:08.9]} 32. h5 {[%clk 0:00:58]} 32... Ra5+ {[%clk
0:01:08.2]} 33. Kf6 {[%clk 0:00:56.1]} 33... Rxg5 {[%clk 0:01:07.3]} 34. Kxg5
{[%clk 0:00:56]} 34... Kc3 {[%clk 0:01:08.1]} 35. Kf4 {[%clk 0:00:49.5]} 35...
Kd2 {[%clk 0:01:08.2]} 36. g4 {[%clk 0:00:50]} 36... Ke2 {[%clk 0:00:36.4]} 37.
g5 {[%clk 0:00:47.3]} 37... Kxf2 {[%clk 0:00:37.3]} 38. g6 {[%clk 0:00:46.1]}
38... hxg6 {[%clk 0:00:36.8]} 39. h6 {[%clk 0:00:46.3]} 39... g5+ {[%clk
0:00:34.1]} 40. Ke5 {[%clk 0:00:24.5]} 40... e3 {[%clk 0:00:32.9]} 41. Kd4
{[%clk 0:00:25.3]} 41... Bh7 {[%clk 0:00:32.5]} 42. Kc3 {[%clk 0:00:26.1]} 42...
g4 {[%clk 0:00:31.6]} 43. Rc1 {[%clk 0:00:22.4]} 43... g3 {[%clk 0:00:30.8]} 44.
Rxc2+ {[%clk 0:00:23.2]} 44... e2 {[%clk 0:00:29.2]} 45. Ra2 {[%clk 0:00:15.7]}
45... g2 {[%clk 0:00:28]} 46. Ra7 {[%clk 0:00:16.4]} 46... e1=Q+ {[%clk
0:00:25.3]} 0-1

[Event "*** Titled Tuesday 3|2 Blitz"]
[Site "Chess.com"]
[Date "2015.05.05"]
[Round "9"]
[White "MITerryble"]
[Black "zmaj23"]
[Result "0-1"]
[WhiteElo "2517"]
[BlackElo "2465"]
[TimeControl "180+2"]
[EndTime "13:08:58 PDT"]
[Termination "zmaj23 won by resignation"]

1. d4 {[%clk 0:03:01.9]} 1... Nf6 {[%clk 0:02:59.9]} 2. Nf3 {[%clk 0:03:02.8]}
2... e6 {[%clk 0:03:00.6]} 3. c4 {[%clk 0:03:03.4]} 3... c5 {[%clk 0:03:00.5]}
4. g3 {[%clk 0:03:03.8]} 4... cxd4 {[%clk 0:02:54.7]} 5. Nxd4 {[%clk 0:03:04.8]}
5... Bb4+ {[%clk 0:02:54]} 6. Bd2 {[%clk 0:03:05.3]} 6... Qe7 {[%clk 0:02:52.1]}
7. Bg2 {[%clk 0:03:04.9]} 7... Nc6 {[%clk 0:02:50.1]} 8. Nc2 {[%clk 0:02:58.1]}
8... Bxd2+ {[%clk 0:02:48.1]} 9. Qxd2 {[%clk 0:03:00]} 9... O-O {[%clk 0:02:45]}
10. Nc3 {[%clk 0:02:58.7]} 10... Rd8 {[%clk 0:02:39.8]} 11. O-O {[%clk 0:02:51]}
11... b6 {[%clk 0:02:23.1]} 12. Rfd1 {[%clk 0:02:46.8]} 12... Ba6 {[%clk
0:02:20.2]} 13. b3 {[%clk 0:02:47.2]} 13... Rac8 {[%clk 0:02:16.6]} 14. e4
{[%clk 0:02:38.3]} 14... Qc5 {[%clk 0:02:14.1]} 15. Qd6 {[%clk 0:02:21.6]} 15...
Qa5 {[%clk 0:01:55.7]} 16. b4 {[%clk 0:01:50]} 16... Qe5 {[%clk 0:01:55.6]} 17.
Qd3 {[%clk 0:01:20.5]} 17... Qc7 {[%clk 0:01:16.6]} 18. f4 {[%clk 0:00:44.6]}
18... Nxb4 {[%clk 0:01:12.1]} 19. Nxb4 {[%clk 0:00:44.9]} 19... Qc5+ {[%clk
0:01:13.6]} 20. Qd4 {[%clk 0:00:31.6]} 20... Qxb4 {[%clk 0:01:15.5]} 21. Bf1
{[%clk 0:00:21.7]} 21... Bxc4 {[%clk 0:01:11.2]} 22. e5 {[%clk 0:00:18.2]} 22...
Nd5 {[%clk 0:01:08.8]} 23. Nxd5 {[%clk 0:00:19.3]} 23... exd5 {[%clk 0:01:10.7]}
24. Bg2 {[%clk 0:00:19.1]} 24... d6 {[%clk 0:01:08.5]} 25. a3 {[%clk 0:00:06]}
25... Qc5 {[%clk 0:01:06.6]} 26. Qxc5 {[%clk 0:00:07.2]} 26... dxc5 {[%clk
0:01:04.5]} 27. Rac1 {[%clk 0:00:07.8]} 27... b5 {[%clk 0:01:03.2]} 28. Bh3
{[%clk 0:00:04.9]} 28... Rc7 {[%clk 0:00:59.4]} 29. a4 {[%clk 0:00:05]} 29...
Bb3 {[%clk 0:00:56.4]} 30. Rd3 {[%clk 0:00:05.1]} 30... Bxa4 {[%clk 0:00:54.6]}
31. e6 {[%clk 0:00:03.8]} 31... b4 {[%clk 0:00:46.3]} 32. Re1 {[%clk 0:00:03.6]}
32... Bb5 {[%clk 0:00:41.8]} 33. Rde3 {[%clk 0:00:04.1]} 33... d4 {[%clk
0:00:43.1]} 34. e7 {[%clk 0:00:03.4]} 34... Re8 {[%clk 0:00:41.9]} 35. Re5
{[%clk 0:00:05.3]} 35... b3 {[%clk 0:00:36.7]} 36. Bg2 {[%clk 0:00:05.1]} 36...
f6 {[%clk 0:00:35.5]} 37. Bd5+ {[%clk 0:00:05.6]} 37... Kh8 {[%clk 0:00:35.7]}
38. R5e4 {[%clk 0:00:06.4]} 38... Bd3 {[%clk 0:00:32.9]} 39. Re6 {[%clk
0:00:04.9]} 39... b2 {[%clk 0:00:34]} 40. Ba2 {[%clk 0:00:05.2]} 40... c4 {[%clk
0:00:31.5]} 41. Rd6 {[%clk 0:00:06.3]} 41... c3 {[%clk 0:00:29.4]} 42. Rd8
{[%clk 0:00:06.9]} 42... Bg6 {[%clk 0:00:24.5]} 43. f5 {[%clk 0:00:07.9]} 43...
Bh5 {[%clk 0:00:18.9]} 44. g4 {[%clk 0:00:08.5]} 44... Rxe7 {[%clk 0:00:13.7]}
45. Rxe7 {[%clk 0:00:07.4]} 45... Rxd8 {[%clk 0:00:14.6]} 46. gxh5 {[%clk
0:00:08.8]} 46... c2 {[%clk 0:00:15.3]} 0-1

[Event "*** Titled Tuesday 3|2 Blitz"]
[Site "Chess.com"]
[Date "2015.05.05"]
[Round "9"]
[White "Nouki"]
[Black "Enozen"]
[Result "1/2-1/2"]
[WhiteElo "2592"]
[BlackElo "2501"]
[TimeControl "180+2"]
[EndTime "13:09:57 PDT"]
[Termination "Game drawn - insufficient material"]

1. d4 {[%clk 0:02:50.7]} 1... Nf6 {[%clk 0:03:01.1]} 2. c4 {[%clk 0:02:51.3]}
2... c5 {[%clk 0:03:02]} 3. d5 {[%clk 0:02:52.1]} 3... e6 {[%clk 0:03:03]} 4.
Nc3 {[%clk 0:02:52.4]} 4... exd5 {[%clk 0:03:04.9]} 5. cxd5 {[%clk 0:02:54.3]}
5... g6 {[%clk 0:03:05.8]} 6. e4 {[%clk 0:02:55.5]} 6... d6 {[%clk 0:03:03.6]}
7. f4 {[%clk 0:02:56.7]} 7... Bg7 {[%clk 0:03:02.4]} 8. Bb5+ {[%clk 0:02:57.7]}
8... Nfd7 {[%clk 0:03:04]} 9. Nf3 {[%clk 0:02:58.2]} 9... O-O {[%clk 0:03:05.1]}
10. O-O {[%clk 0:02:59.3]} 10... a6 {[%clk 0:03:03.5]} 11. Bd3 {[%clk
0:03:00.8]} 11... b5 {[%clk 0:03:03.8]} 12. Kh1 {[%clk 0:03:01.6]} 12... Re8
{[%clk 0:03:03.4]} 13. a3 {[%clk 0:02:59.1]} 13... c4 {[%clk 0:03:01.4]} 14. Bc2
{[%clk 0:02:59.6]} 14... Nc5 {[%clk 0:03:03.3]} 15. f5 {[%clk 0:02:46.3]} 15...
Nbd7 {[%clk 0:02:59.8]} 16. Bg5 {[%clk 0:02:47.1]} 16... Qc7 {[%clk 0:03:00.7]}
17. Qd2 {[%clk 0:02:42.5]} 17... Ne5 {[%clk 0:02:57.6]} 18. Nxe5 {[%clk
0:02:42.8]} 18... Bxe5 {[%clk 0:02:59.1]} 19. Rf3 {[%clk 0:02:36.9]} 19... f6
{[%clk 0:02:14.7]} 20. Bf4 {[%clk 0:01:15.7]} 20... Bxf4 {[%clk 0:02:15.1]} 21.
Qxf4 {[%clk 0:01:15.7]} 21... g5 {[%clk 0:02:17]} 22. Rg3 {[%clk 0:01:15.2]}
22... Kh8 {[%clk 0:02:16.2]} 23. Qg4 {[%clk 0:01:14.8]} 23... Qf7 {[%clk
0:02:10.2]} 24. h4 {[%clk 0:01:12.1]} 24... h6 {[%clk 0:02:07.4]} 25. Rh3 {[%clk
0:00:51.7]} 25... Kg7 {[%clk 0:01:37.4]} 26. hxg5 {[%clk 0:00:52]} 26... hxg5
{[%clk 0:01:39.3]} 27. Ne2 {[%clk 0:00:53.2]} 27... Bd7 {[%clk 0:01:36.7]} 28.
Nd4 {[%clk 0:00:49.1]} 28... Rh8 {[%clk 0:01:34.9]} 29. Ne6+ {[%clk 0:00:48.4]}
29... Bxe6 {[%clk 0:01:16.2]} 30. fxe6 {[%clk 0:00:50.3]} 30... Qg6 {[%clk
0:01:14]} 31. Kg1 {[%clk 0:00:46.7]} 31... Rxh3 {[%clk 0:01:11.7]} 32. Qxh3
{[%clk 0:00:47.4]} 32... Rh8 {[%clk 0:01:13.6]} 33. Qg3 {[%clk 0:00:46.7]} 33...
Qh5 {[%clk 0:01:00.4]} 34. Qxd6 {[%clk 0:00:44]} 34... Qh1+ {[%clk 0:01:00]} 35.
Kf2 {[%clk 0:00:45.3]} 35... Qxa1 {[%clk 0:01:01.9]} 36. Qe7+ {[%clk 0:00:42.9]}
36... Kh6 {[%clk 0:00:57.3]} 37. Qxf6+ {[%clk 0:00:38.5]} 37... Kh7 {[%clk
0:00:42.9]} 38. Qf5+ {[%clk 0:00:39.8]} 38... Kh6 {[%clk 0:00:41.3]} 39. Qh3+
{[%clk 0:00:36.1]} 39... Kg7 {[%clk 0:00:41.8]} 40. Qc3+ {[%clk 0:00:33.5]}
40... Kh7 {[%clk 0:00:41.2]} 41. e7 {[%clk 0:00:32.5]} 41... Re8 {[%clk
0:00:30.9]} 42. d6 {[%clk 0:00:28.3]} 42... Qh1 {[%clk 0:00:31.8]} 43. e5+
{[%clk 0:00:28]} 43... Kg8 {[%clk 0:00:30.7]} 44. Qd4 {[%clk 0:00:23.4]} 44...
Qc1 {[%clk 0:00:28.3]} 45. Bg6 {[%clk 0:00:21.4]} 45... Ne6 {[%clk 0:00:26.8]}
46. Qe4 {[%clk 0:00:21.6]} 46... Rb8 {[%clk 0:00:22.6]} 47. Kg3 {[%clk
0:00:19.1]} 47... Qd1 {[%clk 0:00:21.8]} 48. e8=Q+ {[%clk 0:00:17.2]} 48... Rxe8
{[%clk 0:00:23]} 49. Bxe8 {[%clk 0:00:19.1]} 49... Qd2 {[%clk 0:00:22.9]} 50.
Qg6+ {[%clk 0:00:19.7]} 50... Ng7 {[%clk 0:00:22.2]} 51. Qf7+ {[%clk 0:00:21]}
51... Kh8 {[%clk 0:00:23.2]} 52. Qg6 {[%clk 0:00:22.9]} 52... Kg8 {[%clk
0:00:22.4]} 53. Bf7+ {[%clk 0:00:23.7]} 53... Kf8 {[%clk 0:00:21.4]} 54. Qf6
{[%clk 0:00:25.2]} 54... Qf4+ {[%clk 0:00:21.3]} 55. Qxf4 {[%clk 0:00:26]} 55...
gxf4+ {[%clk 0:00:23.2]} 56. Kxf4 {[%clk 0:00:27.9]} 56... Kxf7 {[%clk
0:00:25.1]} 57. Ke4 {[%clk 0:00:28.3]} 57... Ne6 {[%clk 0:00:23.2]} 58. g4
{[%clk 0:00:30.2]} 58... Ke8 {[%clk 0:00:22.8]} 59. Kf5 {[%clk 0:00:30.6]} 59...
Kd7 {[%clk 0:00:24.4]} 60. g5 {[%clk 0:00:32.1]} 60... a5 {[%clk 0:00:23.8]} 61.
g6 {[%clk 0:00:33.6]} 61... b4 {[%clk 0:00:23.4]} 62. axb4 {[%clk 0:00:35.1]}
62... axb4 {[%clk 0:00:25.3]} 63. Ke4 {[%clk 0:00:37]} 63... c3 {[%clk
0:00:24.1]} 64. bxc3 {[%clk 0:00:37.6]} 64... b3 {[%clk 0:00:24.1]} 65. Kd3
{[%clk 0:00:37.5]} 65... Nf4+ {[%clk 0:00:22.6]} 66. Kd2 {[%clk 0:00:39.1]}
66... Nxg6 {[%clk 0:00:22.5]} 67. c4 {[%clk 0:00:40.5]} 67... b2 {[%clk
0:00:16.8]} 68. Kc2 {[%clk 0:00:41.5]} 68... b1=Q+ {[%clk 0:00:17.7]} 69. Kxb1
{[%clk 0:00:42.8]} 69... Nxe5 {[%clk 0:00:19.5]} 70. c5 {[%clk 0:00:44.3]} 70...
Nd3 {[%clk 0:00:20.7]} 71. c6+ {[%clk 0:00:44.2]} 71... Kxd6 {[%clk 0:00:22]}
72. c7 {[%clk 0:00:45.2]} 72... Kxc7 {[%clk 0:00:23.9]} 1/2-1/2

[Event "*** Titled Tuesday 3|2 Blitz"]
[Site "Chess.com"]
[Date "2015.05.05"]
[Round "9"]
[White "MrHenriksson"]
[Black "chessloveyou"]
[Result "1/2-1/2"]
[WhiteElo "2020"]
[BlackElo "2088"]
[TimeControl "180+2"]
[EndTime "13:11:18 PDT"]
[Termination "Game drawn by stalemate"]

1. d4 {[%clk 0:03:01.9]} 1... Nf6 {[%clk 0:03:00.2]} 2. Nf3 {[%clk 0:03:03.3]}
2... g6 {[%clk 0:02:58]} 3. g3 {[%clk 0:03:04.8]} 3... Bg7 {[%clk 0:02:59.1]} 4.
Bg2 {[%clk 0:03:06.2]} 4... d5 {[%clk 0:02:58]} 5. O-O {[%clk 0:03:06.8]} 5...
O-O {[%clk 0:02:59.9]} 6. c4 {[%clk 0:03:07.9]} 6... dxc4 {[%clk 0:02:58.4]} 7.
Na3 {[%clk 0:03:08.9]} 7... c5 {[%clk 0:02:54.2]} 8. dxc5 {[%clk 0:03:08.7]}
8... Qc7 {[%clk 0:02:47.4]} 9. Nxc4 {[%clk 0:03:06.6]} 9... Qxc5 {[%clk
0:02:48]} 10. Nfe5 {[%clk 0:02:50.4]} 10... Ng4 {[%clk 0:02:21.3]} 11. Nxg4
{[%clk 0:02:35.8]} 11... Qxc4 {[%clk 0:02:14.2]} 12. Ne3 {[%clk 0:02:34.2]}
12... Qa6 {[%clk 0:02:03.7]} 13. Qb3 {[%clk 0:02:31.5]} 13... Nc6 {[%clk
0:02:02.4]} 14. Qc4 {[%clk 0:02:25.1]} 14... Qxc4 {[%clk 0:01:54]} 15. Nxc4
{[%clk 0:02:25.1]} 15... Be6 {[%clk 0:01:55.2]} 16. Bxc6 {[%clk 0:02:00.6]}
16... bxc6 {[%clk 0:01:48.2]} 17. Na5 {[%clk 0:02:02.1]} 17... Bd5 {[%clk
0:01:43]} 18. Bg5 {[%clk 0:01:42.8]} 18... Bxb2 {[%clk 0:01:27.8]} 19. Rab1
{[%clk 0:01:20.5]} 19... Bc3 {[%clk 0:01:21.3]} 20. Nxc6 {[%clk 0:01:05.4]}
20... Bxc6 {[%clk 0:01:15.2]} 21. Rbc1 {[%clk 0:01:06.3]} 21... Be5 {[%clk
0:00:52.3]} 22. Rxc6 {[%clk 0:01:03.1]} 22... f6 {[%clk 0:00:53.7]} 23. Bf4
{[%clk 0:01:02.3]} 23... Bxf4 {[%clk 0:00:54.2]} 24. gxf4 {[%clk 0:01:03.2]}
24... Rfd8 {[%clk 0:00:53.3]} 25. Rc7 {[%clk 0:01:00.9]} 25... Kf7 {[%clk
0:00:54.1]} 26. Rb1 {[%clk 0:00:54.5]} 26... Rd2 {[%clk 0:00:54.6]} 27. e3
{[%clk 0:00:55.3]} 27... Rxa2 {[%clk 0:00:55.2]} 28. Rbb7 {[%clk 0:00:55.8]}
28... Re8 {[%clk 0:00:54.9]} 29. Rxa7 {[%clk 0:00:56.4]} 29... Rxa7 {[%clk
0:00:54.5]} 30. Rxa7 {[%clk 0:00:57.1]} 30... Ke6 {[%clk 0:00:55.8]} 31. Kg2
{[%clk 0:00:57.5]} 31... Kf5 {[%clk 0:00:57]} 32. Kf3 {[%clk 0:00:57.2]} 32...
h5 {[%clk 0:00:58.2]} 33. Ra5+ {[%clk 0:00:54]} 33... Ke6 {[%clk 0:00:55.9]} 34.
h4 {[%clk 0:00:53.8]} 34... Rb8 {[%clk 0:00:56.9]} 35. Ra6+ {[%clk 0:00:49.3]}
35... Kf7 {[%clk 0:00:55.8]} 36. Ra1 {[%clk 0:00:48.5]} 36... Rb4 {[%clk
0:00:56.9]} 37. Rd1 {[%clk 0:00:47.7]} 37... Rb2 {[%clk 0:00:57.7]} 38. Rc1
{[%clk 0:00:47.4]} 38... Ke6 {[%clk 0:00:58]} 39. Rd1 {[%clk 0:00:48.1]} 39...
Rc2 {[%clk 0:00:58.7]} 40. Rg1 {[%clk 0:00:47.7]} 40... Kf7 {[%clk 0:00:58.3]}
41. Rd1 {[%clk 0:00:47.9]} 41... Rc5 {[%clk 0:00:58.7]} 42. Rg1 {[%clk
0:00:47.9]} 42... e5 {[%clk 0:00:59.6]} 43. Rb1 {[%clk 0:00:34.8]} 43... exf4
{[%clk 0:00:49.3]} 44. Kxf4 {[%clk 0:00:35.4]} 44... Rc4+ {[%clk 0:00:46.2]} 45.
e4 {[%clk 0:00:35.6]} 45... Rc7 {[%clk 0:00:42]} 46. f3 {[%clk 0:00:35.4]} 46...
Ra7 {[%clk 0:00:43]} 47. Rb6 {[%clk 0:00:34.5]} 47... Re7 {[%clk 0:00:42.4]} 48.
Rc6 {[%clk 0:00:35.5]} 48... Kg7 {[%clk 0:00:42.7]} 49. Rd6 {[%clk 0:00:36.1]}
49... Rf7 {[%clk 0:00:43.9]} 50. Re6 {[%clk 0:00:36.6]} 50... Ra7 {[%clk
0:00:43.4]} 51. e5 {[%clk 0:00:33.9]} 51... Ra4+ {[%clk 0:00:43.8]} 52. Kg3
{[%clk 0:00:34.6]} 52... fxe5 {[%clk 0:00:21.2]} 53. Rxe5 {[%clk 0:00:35.1]}
53... Kf6 {[%clk 0:00:22.5]} 54. Rb5 {[%clk 0:00:34.9]} 54... Rc4 {[%clk
0:00:23.5]} 55. Rd5 {[%clk 0:00:35.1]} 55... Ra4 {[%clk 0:00:24.1]} 56. Rd6+
{[%clk 0:00:34.3]} 56... Kf5 {[%clk 0:00:22.1]} 57. Rb6 {[%clk 0:00:34.5]} 57...
Rc4 {[%clk 0:00:22.2]} 58. Rb5+ {[%clk 0:00:35.3]} 58... Kf6 {[%clk 0:00:23.3]}
59. Rd5 {[%clk 0:00:35.5]} 59... Rc1 {[%clk 0:00:24.5]} 60. Kf4 {[%clk 0:00:34]}
60... Rg1 {[%clk 0:00:23.3]} 61. Rd6+ {[%clk 0:00:32.8]} 61... Kf7 {[%clk
0:00:23.6]} 62. Rb6 {[%clk 0:00:32.3]} 62... Rg2 {[%clk 0:00:24]} 63. Rc6 {[%clk
0:00:29.2]} 63... Rg1 {[%clk 0:00:24.9]} 64. Rd6 {[%clk 0:00:30.1]} 64... Rh1
{[%clk 0:00:26]} 65. Kg5 {[%clk 0:00:26.6]} 65... Rg1+ {[%clk 0:00:23.8]} 66.
Kh6 {[%clk 0:00:23.6]} 66... Rg3 {[%clk 0:00:24]} 67. Rd7+ {[%clk 0:00:21.9]}
67... Kf6 {[%clk 0:00:21.2]} 68. Rb7 {[%clk 0:00:21.5]} 68... Ke5 {[%clk
0:00:16]} 69. Rb6 {[%clk 0:00:20.9]} 69... Kf5 {[%clk 0:00:15.8]} 70. Rc6 {[%clk
0:00:19.3]} 70... Rg1 {[%clk 0:00:10.8]} 71. Rc5+ {[%clk 0:00:16.7]} 71... Kf4
{[%clk 0:00:11.4]} 72. Rc6 {[%clk 0:00:15.6]} 72... Kxf3 {[%clk 0:00:11.4]} 73.
Rf6+ {[%clk 0:00:15]} 73... Ke4 {[%clk 0:00:09.3]} 74. Rxg6 {[%clk 0:00:16]}
74... Rxg6+ {[%clk 0:00:09]} 75. Kxg6 {[%clk 0:00:16.8]} 75... Kf4 {[%clk
0:00:10.7]} 76. Kxh5 {[%clk 0:00:17.5]} 76... Kf5 {[%clk 0:00:12.1]} 77. Kh6
{[%clk 0:00:18.8]} 77... Kf6 {[%clk 0:00:13.4]} 78. Kh7 {[%clk 0:00:18.8]} 78...
Kf7 {[%clk 0:00:14.6]} 79. h5 {[%clk 0:00:19.9]} 79... Kf8 {[%clk 0:00:15.6]}
80. h6 {[%clk 0:00:20.4]} 80... Kf7 {[%clk 0:00:16.7]} 81. Kh8 {[%clk
0:00:21.5]} 81... Kf8 {[%clk 0:00:16.6]} 82. h7 {[%clk 0:00:22.6]} 82... Kf7
{[%clk 0:00:18.2]} 1/2-1/2